bitfinex-derivatives/quotes_SOLF0:USTF0_20250114
["timestamp","ask_amount","ask_price","bid_price","bid_amount"]
[1736878794051,2.6833,186.44,186.42,7.94429873]
[1736878794454,7.94429873,186.43,186.31,29.72580121]
[1736878794753,2.6838,186.4,186.35,7.94429873]
[1736878796043,2.6838,186.4,186.29,5.3706]
[1736878796244,2.6838,186.4,186.36,7.94429873]
[1736878796547,2.6838,186.4,186.36,10.62859873]
[1736878796851,7.94429873,186.43,186.38,7.94429873]
[1736878797247,10.62779873,186.43,186.38,7.94429873]
[1736878797851,10.62779873,186.43,186.38,10.62829873]
[1736878798449,2.6836,186.42,186.38,10.62829873]
[1736878798650,7.94429873,186.43,186.38,7.94429873]
[1736878798954,7.94429873,186.43,186.36,7.94429873]
[1736878799149,7.94429873,186.41,186.36,7.94429873]
[1736878799749,2.6841,186.39,186.36,7.94429873]
[1736878799944,2.6841,186.39,186.35,2.6845]
[1736878800160,2.6841,186.39,186.36,7.94429873]
[1736878800454,5.58,186.4,186.34,7.94429873]
[1736878800646,7.94429873,186.39,186.32,7.94429873]
[1736878800844,7.94429873,186.37,186.32,7.94429873]
[1736878801053,2.6847,186.34,186.32,7.94429873]
[1736878801451,2.6847,186.34,186.3,7.94429873]
[1736878803056,2.685,186.33,186.21,29.72580121]
[1736878803255,7.94429873,186.37,186.29,7.94429873]
[1736878803955,2.6846,186.35,186.31,7.94429873]
[1736878804351,7.94429873,186.38,186.33,7.94429873]
[1736878804556,8.7992,186.39,186.33,7.94429873]
[1736878804756,7.2088,186.39,186.35,7.94429873]
[1736878804955,2.6841,186.38,186.35,7.94429873]
[1736878806559,7.2088,186.39,186.35,7.94429873]
[1736878806760,2.6841,186.38,186.35,7.94429873]
[1736878808157,7.94429873,186.38,186.31,2.685]
[1736878808364,7.94429873,186.36,186.3,7.94429873]
[1736878808757,2.6849,186.33,186.28,2.6854]
[1736878808960,7.94429873,186.36,186.29,7.94429873]
[1736878809562,2.6849,186.33,186.29,7.94429873]
[1736878813468,7.94429873,186.36,186.29,7.94429873]
[1736878813664,7.94429873,186.32,186.23,101.07525232]
[1736878813871,5.58,186.31,186.26,7.94429873]
[1736878814564,7.94429873,186.3,186.23,101.07525232]
[1736878814761,9.51479873,186.3,186.24,7.94429873]
[1736878815169,2.6858,186.27,186.24,7.94429873]
[1736878816071,2.6856,186.28,186.24,7.94429873]
[1736878816472,9.51479873,186.3,186.24,7.94429873]
[1736878817173,2.6858,186.27,186.24,7.94429873]
[1736878820276,9.51479873,186.3,186.2,14.1592582]
[1736878820577,9.51479873,186.3,186.23,7.94429873]
[1736878821476,7.94429873,186.28,186.23,7.94429873]
[1736878822879,2.6859,186.26,186.23,7.94429873]
[1736878823285,1.5705,186.3,186.25,7.94429873]
[1736878823583,5.58,186.29,186.25,7.94429873]
[1736878824184,2.6857,186.28,186.25,7.94429873]
[1736878824480,7.1505,186.3,186.25,7.94429873]
[1736878824681,2.6854,186.29,186.25,10.63029873]
[1736878824882,1.5705,186.3,186.27,7.94429873]
[1736878825083,5.58,186.34,186.29,7.94429873]
[1736878825278,8.2648,186.34,186.31,7.94429873]
[1736878825478,7.94429873,186.32,186.2,14.1592582]
[1736878825680,7.94429873,186.3,186.24,7.94429873]
[1736878826284,7.94429873,186.3,186.2,14.1592582]
[1736878826485,7.94429873,186.28,186.2,14.1592582]
[1736878826685,7.94429873,186.26,186.2,22.10355693]
[1736878827485,2.6862,186.24,186.2,7.94429873]
[1736878827684,7.2782,186.27,186.2,7.94429873]
[1736878827884,7.2782,186.27,186.22,7.94429873]
[1736878828083,9.9639,186.27,186.22,10.63069873]
[1736878828285,7.2782,186.27,186.22,7.94429873]
[1736878828787,2.686,186.25,186.22,7.94429873]
[1736878828978,7.2782,186.27,186.13,201.61947933]
[1736878829178,7.94429873,186.26,186.2,7.94429873]
[1736878829586,2.686,186.25,186.2,10.63089873]
[1736878831378,2.686,186.25,186.2,7.94429873]
[1736878831584,7.2782,186.27,186.22,7.94429873]
[1736878831781,7.94429873,186.31,186.26,7.94429873]
[1736878831989,8.2652,186.31,186.26,10.62999873]
[1736878832179,5.58,186.31,186.26,10.62999873]
[1736878832984,2.6854,186.3,186.26,10.62999873]
[1736878833385,2.6851,186.32,186.28,7.94429873]
[1736878833689,8.9591,186.33,186.28,7.94429873]
[1736878834086,11.6441,186.33,186.28,10.62979873]
[1736878834392,8.9591,186.33,186.28,10.62979873]
[1736878834984,16.90339873,186.33,186.28,10.62979873]
[1736878835184,2.6851,186.32,186.28,10.62979873]
[1736878835787,16.90339873,186.33,186.28,7.94429873]
[1736878835788,2.6851,186.31,186.28,7.94429873]
[1736878835989,7.94429873,186.31,186.24,7.94429873]
[1736878836490,2.6854,186.29,186.24,10.63039873]
[1736878837590,2.6854,186.29,186.25,2.686]
[1736878839094,12.46257973,186.32,186.21,12.46257973]
[1736878839297,2.6856,186.28,186.24,2.6861]
[1736878839993,2.6856,186.28,186.25,2.686]
[1736878840197,2.6853,186.3,186.25,2.686]
[1736878841491,1.6633,186.33,186.24,12.46257973]
[1736878841692,3.2882,186.4,186.3,12.46257973]
[1736878841895,3.2882,186.4,186.33,12.46257973]
[1736878842086,147.84504072,186.42,186.39,2.6838]
[1736878842288,8.2631,186.45,186.39,2.6838]
[1736878843396,5.58,186.45,186.41,2.6837]
[1736878843790,12.46257973,186.49,186.3,12.46257973]
[1736878843791,619.08672985,186.57,186.39,12.46257973]
[1736878843991,11.36541827,186.53,186.44,2.6832]
[1736878844189,0.90931827,186.52,186.42,12.46257973]
[1736878844395,5.58,186.51,186.42,12.46257973]
[1736878844589,8.2623,186.51,186.43,2.6833]
[1736878844793,5.58,186.51,186.42,12.46257973]
[1736878844995,5.58,186.5,186.39,12.46257973]
[1736878846198,5.58,186.5,186.42,2.6835]
[1736878846199,8.2624,186.5,186.42,2.6835]
[1736878846695,2.6827,186.48,186.41,2.6837]
[1736878847095,12.46257973,186.48,186.36,12.46257973]
[1736878847296,2.6828,186.47,186.41,2.6837]
[1736878847493,5.58,186.5,186.39,12.46257973]
[1736878848606,12.46257973,186.48,186.28,100.52]
[1736878848899,5.58,186.5,186.34,12.46257973]
[1736878848900,12.46257973,186.45,186.34,12.46257973]
[1736878849100,2.6833,186.44,186.37,2.6841]
[1736878849402,5.6,186.43,186.37,2.6841]
[1736878850900,8.2835,186.43,186.37,2.6841]
[1736878851101,5.6,186.43,186.36,2.6844]
[1736878851802,2.6837,186.42,186.36,2.6844]
[1736878852003,12.46257973,186.42,186.34,2.6846]
[1736878852202,14.14077973,186.42,186.31,12.46257973]
[1736878853101,2.6837,186.41,186.35,2.6844]
[1736878853302,5.6,186.43,186.31,12.46257973]
[1736878853503,5.6,186.43,186.34,12.46257973]
[1736878854000,5.6,186.43,186.39,2.6839]
[1736878854301,5.6,186.43,186.37,12.46257973]
[1736878854500,5.6,186.43,186.42,2.6835]
[1736878854998,195.0,186.47,186.4,12.46257973]
[1736878855299,195.0,186.47,186.45,2.6831]
[1736878855696,195.0,186.47,186.46,2.683]
[1736878856406,1.7063,186.55,186.46,12.46257973]
[1736878856905,12.46257973,186.6,186.39,12.46257973]
[1736878856906,1.6588,186.63,186.49,12.46257973]
[1736878857099,6.50989106,186.62,186.49,12.46257973]
[1736878857294,0.90989106,186.61,186.49,12.46257973]
[1736878857501,0.91010859,186.6,186.49,12.46257973]
[1736878857704,2.681,186.6,186.54,2.6818]
[1736878858004,5.6,186.59,186.49,12.46257973]
[1736878858198,2.6813,186.58,186.49,12.46257973]
[1736878858404,2.6813,186.58,186.52,2.6821]
[1736878858603,5.6,186.59,186.49,12.46257973]
[1736878858798,8.2811,186.59,186.52,2.6821]
[1736878859000,8.2811,186.59,186.49,12.46257973]
[1736878859404,5.6,186.59,186.49,12.46257973]
[1736878860401,2.6815,186.56,186.52,2.6821]
[1736878860601,5.6,186.59,186.46,12.46257973]
[1736878860806,12.46257973,186.57,186.46,12.46257973]
[1736878861202,0.90988226,186.56,186.43,12.46257973]
[1736878862196,0.90964757,186.55,186.43,12.46257973]
[1736878862395,12.46257973,186.54,186.43,12.46257973]
[1736878862595,15.56957973,186.54,186.39,18.06257973]
[1736878862899,15.56957973,186.54,186.44,2.6831]
[1736878863105,12.46257973,186.51,186.39,12.46257973]
[1736878863409,2.6832,186.45,186.41,2.6837]
[1736878864403,2.6832,186.45,186.38,100.98897574]
[1736878864707,12.46257973,186.48,186.39,2.6839]
[1736878865210,2.6834,186.44,186.38,100.98897574]
[1736878865410,2.6834,186.44,186.4,2.6838]
[1736878867212,2.6834,186.43,186.39,2.684]
[1736878867401,5.6,186.43,186.38,100.98897574]
[1736878868207,2.6836,186.42,186.38,100.98897574]
[1736878869008,5.6,186.43,186.38,100.98897574]
[1736878870107,5.6,186.43,186.4,2.6838]
[1736878870408,5.6,186.43,186.38,100.98897574]
[1736878870610,1.7223,186.46,186.38,100.98897574]
[1736878870909,5.6,186.48,186.38,100.98897574]
[1736878871109,2.6829,186.47,186.42,2.6834]
[1736878871814,5.6,186.48,186.38,100.98897574]
[1736878873114,2.6835,186.43,186.38,103.67307574]
[1736878873317,19.91307985,186.47,186.38,100.98897574]
[1736878873915,19.91307985,186.47,186.33,6.83835717]
[1736878874313,2.6837,186.41,186.36,2.6844]
[1736878874814,2.6837,186.41,186.37,2.6842]
[1736878875315,5.6,186.41,186.33,6.83835717]
[1736878876310,8.2838,186.41,186.35,2.6845]
[1736878876513,5.6,186.41,186.33,6.83835717]
[1736878877017,2.6833,186.44,186.4,2.6838]
[1736878877221,195.0,186.46,186.35,19.91307985]
[1736878877614,2.6831,186.45,186.35,19.91307985]
[1736878878018,2.6831,186.45,186.41,2.6836]
[1736878879015,2.6831,186.45,186.42,2.6835]
[1736878879218,197.683,186.46,186.42,2.6835]
[1736878881022,2.683,186.46,186.42,2.6835]
[1736878881910,19.91307985,186.5,186.42,2.6835]
[1736878882114,2.6829,186.47,186.42,2.6835]
[1736878882319,5.6,186.49,186.42,2.6835]
[1736878882822,2.6828,186.47,186.42,2.6835]
[1736878883225,5.6,186.49,186.35,19.91307985]
[1736878883425,2.6829,186.47,186.35,19.91307985]
[1736878883824,2.6829,186.47,186.42,2.6834]
[1736878885025,2.6829,186.47,186.43,2.6834]
[1736878885526,2.6827,186.48,186.38,19.91307985]
[1736878885726,5.6,186.49,186.38,19.91307985]
[1736878886121,198.2296,186.52,186.38,19.91307985]
[1736878886326,5.58,186.51,186.38,19.91307985]
[1736878886521,5.58,186.51,186.36,5.3688]
[1736878886522,8.2623,186.51,186.41,19.91307985]
[1736878887326,5.58,186.51,186.48,2.6826]
[1736878887525,3.2296,186.52,186.48,2.6826]
[1736878888225,5.9117,186.52,186.48,2.6826]
[1736878888427,3.2296,186.52,186.49,2.6825]
[1736878888627,12.43289584,186.55,186.43,12.43289584]
[1736878888926,5.58,186.55,186.52,2.682]
[1736878889727,8.2617,186.55,186.46,12.43289584]
[1736878890826,8.2617,186.55,186.5,2.6823]
[1736878891026,5.58,186.55,186.5,2.6823]
[1736878891224,18.01289584,186.55,186.43,12.43289584]
[1736878891931,2.6823,186.51,186.47,2.6827]
[1736878892531,2.6823,186.51,186.43,12.43289584]
[1736878894633,2.6823,186.51,186.48,2.6826]
[1736878894832,2.6821,186.52,186.43,12.43289584]
[1736878895032,18.01289584,186.55,186.43,12.43289584]
[1736878895431,2.6823,186.51,186.43,12.43289584]
[1736878896928,18.01289584,186.55,186.39,18.01289584]
[1736878897133,12.43289584,186.52,186.39,18.01289584]
[1736878897333,18.01289584,186.55,186.42,12.43289584]
[1736878897534,2.6823,186.51,186.42,12.43289584]
[1736878897739,2.6823,186.51,186.48,2.6826]
[1736878899032,18.01289584,186.55,186.48,2.6826]
[1736878899236,2.6822,186.52,186.48,2.6826]
[1736878900137,2.6822,186.51,186.48,2.6826]
[1736878900833,2.6822,186.52,186.48,2.6826]
[1736878902441,18.01289584,186.55,186.45,12.43289584]
[1736878902638,5.58,186.55,186.45,12.43289584]
[1736878902837,5.58,186.56,186.45,12.43289584]
[1736878903237,2.6818,186.54,186.45,12.43289584]
[1736878903928,2.6818,186.54,186.49,2.6824]
[1736878904128,12.43289584,186.55,186.45,12.43289584]
[1736878904335,12.43289584,186.55,186.42,12.43289584]
[1736878904534,12.43289584,186.52,186.4,113.407975]
[1736878905136,2.6827,186.48,186.4,113.407975]
[1736878905837,2.6827,186.48,186.44,2.6832]
[1736878907242,12.43289584,186.52,186.44,2.6832]
[1736878907442,2.6829,186.47,186.44,2.6832]
[1736878908446,12.43289584,186.52,186.44,2.6832]
[1736878908634,2.683,186.46,186.44,2.6832]
[1736878910244,5.58,186.49,186.44,2.6832]
[1736878910446,2.6829,186.47,186.44,2.6832]
[1736878910941,2.6828,186.48,186.44,2.6832]
[1736878911143,5.58,186.49,186.44,2.6832]
[1736878911842,2.6829,186.47,186.44,2.6832]
[1736878912242,5.58,186.49,186.4,113.407975]
[1736878912443,2.683,186.46,186.43,2.6833]
[1736878912850,2.6828,186.47,186.44,2.6832]
[1736878913553,5.58,186.49,186.4,113.407975]
[1736878913853,2.683,186.46,186.43,2.6833]
[1736878914952,2.6829,186.47,186.44,2.6832]
[1736878915150,5.58,186.49,186.4,12.43289584]
[1736878915349,5.58,186.5,186.4,12.43289584]
[1736878916047,8.2625,186.5,186.46,2.6829]
[1736878917854,5.58,186.5,186.4,12.43289584]
[1736878918058,2.6826,186.49,186.45,2.6831]
[1736878918756,2.6827,186.48,186.45,2.6831]
[1736878919061,5.58,186.5,186.43,2.6833]
[1736878919453,2.6828,186.47,186.43,2.6833]
[1736878919649,5.58,186.5,186.4,12.43289584]
[1736878919955,2.6826,186.49,186.4,12.43289584]
[1736878920157,2.6826,186.49,186.45,2.683]
[1736878920756,5.58,186.5,186.4,12.43289584]
[1736878921358,2.6828,186.47,186.4,12.43289584]
[1736878922963,2.6827,186.49,186.4,12.43289584]
[1736878923155,10.6097,186.53,186.43,12.43289584]
[1736878923464,10.6097,186.53,186.48,2.6825]
[1736878923662,2.6821,186.52,186.48,2.6825]
[1736878924065,3.3097,186.53,186.5,2.6824]
[1736878924463,3.3097,186.53,186.46,12.43289584]
[1736878924668,3.3097,186.53,186.5,2.6823]
[1736878925866,2.6822,186.51,186.47,2.6828]
[1736878926067,3.3097,186.53,186.43,12.43289584]
[1736878926861,2.6824,186.51,186.46,2.683]
[1736878927063,2.6824,186.51,186.43,12.43289584]
[1736878927863,2.6824,186.51,186.47,2.6828]
[1736878928463,3.3097,186.53,186.43,12.43289584]
[1736878928670,5.9917,186.53,186.49,2.6825]
[1736878929358,8.2618,186.55,186.46,12.43289584]
[1736878929572,5.58,186.55,186.46,12.43289584]
[1736878930161,2.6816,186.56,186.46,12.43289584]
[1736878931066,2.6816,186.56,186.51,2.6821]
[1736878931263,2.6817,186.55,186.51,2.6821]
[1736878931469,18.01289584,186.57,186.49,2.6824]
[1736878931768,18.01289584,186.57,186.46,12.43289584]
[1736878931966,2.6821,186.52,186.47,2.6828]
[1736878932161,18.01289584,186.57,186.43,12.43289584]
[1736878932366,2.6827,186.49,186.39,42.15869705]
[1736878932958,5.58,186.5,186.39,42.15869705]
[1736878933163,3.1954,186.49,186.43,2.6834]
[1736878934571,2.6827,186.48,186.43,2.6834]
[1736878934765,2.6827,186.48,186.39,12.43289584]
[1736878934966,2.6827,186.48,186.44,2.6832]
[1736878935167,2.6828,186.47,186.39,12.43289584]
[1736878935369,3.1954,186.49,186.39,12.43289584]
[1736878935568,3.1954,186.49,186.42,2.6835]
[1736878935773,2.6828,186.47,186.39,12.43289584]
[1736878936177,2.6828,186.47,186.43,2.6833]
[1736878938272,3.1954,186.49,186.44,2.6832]
[1736878938577,1.602,186.53,186.39,12.43289584]
[1736878938777,1.602,186.53,186.44,12.43289584]
[1736878938977,2.6822,186.52,186.48,2.6826]
[1736878939177,14.03489584,186.53,186.39,12.43289584]
[1736878939379,1.602,186.53,186.42,12.43289584]
[1736878939780,1.602,186.53,186.45,12.43289584]
[1736878940983,2.6821,186.52,186.45,12.43289584]
[1736878941483,2.6821,186.52,186.48,2.6826]
[1736878945885,2.6823,186.51,186.48,2.6826]
[1736878946175,1.602,186.53,186.45,12.43289584]
[1736878946380,2.6829,186.47,186.39,12.43289584]
[1736878946573,12.43289584,186.52,186.39,12.43289584]
[1736878946882,12.43289584,186.52,186.42,2.6835]
[1736878947072,12.43289584,186.52,186.39,12.43289584]
[1736878947275,12.43289584,186.49,186.39,12.43289584]
[1736878947476,8.8491,186.48,186.39,12.43289584]
[1736878948286,5.58,186.48,186.42,12.43289584]
[1736878948486,5.856,186.54,186.5,2.6824]
[1736878948693,3.1742,186.54,186.5,2.6824]
[1736878949081,5.8562,186.54,186.5,2.6824]
[1736878949276,3.1742,186.54,186.46,12.43289584]
[1736878949485,3.1742,186.54,186.49,2.6825]
[1736878949685,2.6821,186.52,186.46,12.43289584]
[1736878950081,5.58,186.55,186.46,12.43289584]
[1736878950582,2.6821,186.53,186.49,2.6824]
[1736878950787,5.58,186.55,186.49,2.6824]
[1736878950989,5.58,186.55,186.46,12.43289584]
[1736878951389,2.6821,186.52,186.48,2.6826]
[1736878952986,2.6821,186.52,186.46,12.43289584]
[1736878953186,2.6821,186.52,186.49,2.6825]
[1736878954392,2.6819,186.54,186.51,2.6822]
[1736878954594,3.314,186.57,186.49,12.43289584]
[1736878955088,3.314,186.57,186.5,2.6823]
[1736878955389,3.314,186.57,186.49,12.43289584]
[1736878955887,2.6818,186.55,186.51,2.6822]
[1736878959000,2.6818,186.54,186.5,2.6823]
[1736878959489,2.6818,186.54,186.49,12.43289584]
[1736878959690,2.6818,186.54,186.51,2.6822]
[1736878960194,8.894,186.57,186.52,2.682]
[1736878960595,3.314,186.57,186.49,12.43289584]
[1736878960793,2.6814,186.57,186.53,2.6819]
[1736878960990,5.58,186.61,186.52,12.43289584]
[1736878961189,2.681,186.6,186.55,2.6817]
[1736878961688,5.58,186.61,186.52,12.43289584]
[1736878961892,2.6814,186.58,186.53,2.6818]
[1736878962194,18.01289584,186.61,186.49,12.43289584]
[1736878962495,2.6816,186.56,186.52,2.682]
[1736878962997,2.6818,186.55,186.5,2.6824]
[1736878963193,2.6818,186.55,186.49,12.43289584]
[1736878963995,2.6818,186.54,186.51,2.6821]
[1736878965697,12.43289584,186.58,186.46,12.43289584]
[1736878965895,5.58,186.54,186.46,12.43289584]
[1736878966898,2.6824,186.51,186.47,2.6827]
[1736878967093,5.58,186.54,186.46,12.43289584]
[1736878967798,2.6821,186.52,186.48,2.6826]
[1736878968301,5.58,186.54,186.46,12.43289584]
[1736878968497,2.6821,186.53,186.5,2.6824]
[1736878969196,5.58,186.54,186.46,12.43289584]
[1736878969395,5.58,186.54,186.51,2.6822]
[1736878970394,5.58,186.54,186.46,12.43289584]
[1736878970699,2.682,186.53,186.5,2.6824]
[1736878970895,2.682,186.53,186.46,12.43289584]
[1736878971290,2.682,186.53,186.49,2.6825]
[1736878972895,8.262,186.54,186.47,2.6827]
[1736878973096,5.58,186.54,186.45,12.43289584]
[1736878973994,2.6821,186.52,186.45,12.43289584]
[1736878974498,2.6821,186.52,186.48,2.6826]
[1736878975403,2.6821,186.52,186.49,2.6825]
[1736878975803,2.6821,186.52,186.45,12.43289584]
[1736878976506,2.6821,186.52,186.48,2.6826]
[1736878977102,2.6821,186.52,186.45,12.43289584]
[1736878977302,2.6821,186.52,186.49,2.6824]
[1736878978304,2.6816,186.56,186.53,2.682]
[1736878978504,7.1772,186.57,186.53,2.682]
[1736878978694,1.5972,186.57,186.53,2.682]
[1736878978901,5.58,186.58,186.51,12.43289584]
[1736878979198,7.18100931,186.61,186.51,12.43289584]
[1736878979199,5.58,186.6,186.51,12.43289584]
[1736878979400,8.261,186.6,186.56,10.63020316]
[1736878979706,5.58,186.6,186.56,7.94880316]
[1736878980007,6.0069,186.62,186.58,2.6812]
[1736878980206,11.5869,186.62,186.58,2.6812]
[1736878980606,2.6808,186.61,186.57,2.6813]
[1736878980807,8.9061,186.62,186.56,7.94880316]
[1736878981302,11.5869,186.62,186.57,2.6814]
[1736878982007,8.9061,186.62,186.57,2.6814]
[1736878982209,2.6808,186.61,186.57,2.6814]
[1736878986814,8.9061,186.62,186.54,12.41981724]
[1736878987011,8.9061,186.62,186.51,12.41981724]
[1736878987515,2.6814,186.57,186.53,2.6819]
[1736878988415,2.6813,186.58,186.51,12.41981724]
[1736878988617,8.9061,186.62,186.51,12.41981724]
[1736878988817,0.90719684,186.61,186.51,12.41981724]
[1736878989013,8.9061,186.62,186.51,12.41981724]
[1736878989216,8.9061,186.62,186.57,2.6813]
[1736878989914,2.6809,186.61,186.57,2.6813]
[1736878992516,8.9061,186.62,186.57,2.6813]
[1736878992712,2.681,186.6,186.56,2.6815]
[1736878993221,8.9061,186.62,186.56,2.6815]
[1736878994814,2.681,186.6,186.56,2.6815]
[1736878995015,8.9061,186.62,186.56,2.6815]
[1736878995516,8.9061,186.62,186.54,2.6817]
[1736878996821,2.6813,186.58,186.54,2.6817]
[1736878997519,2.6814,186.57,186.54,2.6817]
[1736878997721,8.9061,186.62,186.51,12.41981724]
[1736878998020,0.90736951,186.61,186.51,12.41981724]
[1736878998425,2.6816,186.56,186.52,2.6821]
[1736878999723,2.6816,186.56,186.51,12.41981724]
[1736878999923,2.6814,186.57,186.53,2.682]
[1736879000127,16.08738935,186.62,186.51,12.41981724]
[1736879000323,0.90759478,186.61,186.51,12.41981724]
[1736879000529,0.90757793,186.6,186.42,5.58]
[1736879000830,2.6816,186.56,186.49,12.41981724]
[1736879001632,2.6816,186.56,186.52,2.6821]
[1736879001930,12.41981724,186.6,186.49,12.41981724]
[1736879002126,0.90733434,186.59,186.49,12.41981724]
[1736879002326,2.6819,186.54,186.5,2.6824]
[1736879002932,2.6819,186.54,186.49,12.41981724]
[1736879003231,2.6819,186.54,186.51,2.6822]
[1736879003533,2.6819,186.54,186.51,10.63561233]
[1736879006228,7.95341233,186.58,186.53,7.95341233]
[1736879006527,2.6817,186.55,186.53,7.95341233]
[1736879007533,2.6817,186.55,186.51,7.95341233]
[1736879007831,7.95341233,186.58,186.51,7.95341233]
[1736879008234,7.18128935,186.61,186.53,7.95341233]
[1736879008433,0.90734589,186.6,186.53,7.95341233]
[1736879008624,0.90734589,186.6,186.55,7.95341233]
[1736879008830,2.6814,186.58,186.55,7.95341233]
[1736879011638,3.3261,186.62,186.55,7.95341233]
[1736879011935,5.58,186.61,186.57,7.95341233]
[1736879013734,2.681,186.6,186.57,7.95341233]
[1736879013936,5.58,186.61,186.55,7.95341233]
[1736879014336,5.58,186.61,186.47,5.3654]
[1736879014548,5.58,186.61,186.54,7.95341233]
[1736879014737,2.6813,186.58,186.54,7.95341233]
[1736879015237,5.58,186.61,186.54,7.95341233]
[1736879015432,2.6814,186.57,186.54,7.95341233]
[1736879015838,2.6814,186.57,186.53,2.6819]
[1736879016039,2.6814,186.57,186.53,10.63531233]
[1736879017133,7.95341233,186.6,186.53,7.95341233]
[1736879017338,2.6813,186.58,186.54,2.6818]
[1736879018436,8.261,186.61,186.56,2.6814]
[1736879018637,13.53341233,186.61,186.55,7.95341233]
[1736879018942,13.53341233,186.61,186.53,7.95341233]
[1736879019142,2.6813,186.58,186.54,2.6817]
[1736879020343,2.6814,186.57,186.53,10.63531233]
[1736879022036,2.6814,186.57,186.54,2.6818]
[1736879025746,13.53341233,186.61,186.53,7.95341233]
[1736879026048,2.6816,186.56,186.53,10.63531233]
[1736879026838,7.18892548,186.6,186.55,7.95341233]
[1736879027146,8.9061,186.62,186.57,7.95341233]
[1736879027846,2.6808,186.61,186.58,2.6812]
[1736879028047,3.3261,186.62,186.58,2.6812]
[1736879028243,3.3261,186.62,186.6,2.6809]
[1736879028440,9.86942548,186.64,186.6,2.6809]
[1736879028644,8.2605,186.64,186.59,7.95341233]
[1736879028839,2.6805,186.64,186.6,2.6809]
[1736879029447,8.2603,186.65,186.61,2.6808]
[1736879029646,8.2603,186.65,186.61,10.63421233]
[1736879031945,2.6804,186.64,186.6,2.6809]
[1736879032255,7.95341233,186.63,186.51,6.8323631]
[1736879032451,2.6809,186.61,186.57,2.6813]
[1736879033353,5.58,186.65,186.58,7.95341233]
[1736879033649,13.53341233,186.65,186.58,10.63451233]
[1736879034246,2.6805,186.63,186.58,10.63451233]
[1736879034553,7.95341233,186.63,186.49,6.83309996]
[1736879034753,2.6811,186.59,186.55,7.95341233]
[1736879035448,2.6811,186.59,186.55,10.63501233]
[1736879035847,2.6811,186.59,186.55,7.95341233]
[1736879036050,2.6811,186.59,186.55,10.63501233]
[1736879036252,2.6814,186.58,186.55,7.95341233]
[1736879038457,8.2414,186.58,186.55,7.95341233]
[1736879039551,8.2414,186.58,186.55,10.63511233]
[1736879040455,5.56,186.58,186.55,10.63511233]
[1736879043059,5.56,186.58,186.57,10.63481233]
[1736879046856,5.56,186.58,186.56,7.95341233]
[1736879047054,8.2414,186.58,186.55,2.6816]
[1736879048354,5.56,186.58,186.57,2.6814]
[1736879048755,5.56,186.58,186.55,7.95341233]
[1736879049357,8.2413,186.58,186.55,10.63511233]
[1736879049565,8.2413,186.58,186.55,2.6817]
[1736879050458,8.2413,186.58,186.5,100.93317584]
[1736879050459,5.56,186.58,186.5,100.93317584]
[1736879050661,2.6817,186.55,186.52,2.682]
[1736879051658,13.51341233,186.58,186.5,100.93317584]
[1736879051865,3.2356,186.57,186.51,7.95341233]
[1736879052066,2.6821,186.53,186.51,7.95341233]
[1736879052668,2.6816,186.56,186.51,7.95341233]
[1736879052965,3.2356,186.57,186.54,7.95341233]
[1736879053164,5.9171,186.57,186.54,7.95341233]
[1736879053364,3.2356,186.57,186.52,7.95341233]
[1736879054670,2.6818,186.55,186.52,7.95341233]
[1736879056070,2.6818,186.55,186.51,2.6822]
[1736879056264,2.6818,186.55,186.52,7.95341233]
[1736879056768,7.95341233,186.56,186.5,100.93317584]
[1736879057065,7.95341233,186.56,186.49,7.95341233]
[1736879057566,7.95341233,186.56,186.49,10.63581233]
[1736879057567,2.6818,186.54,186.49,10.63581233]
[1736879060471,2.6818,186.54,186.5,2.6824]
[1736879061570,8.2617,186.55,186.51,10.63561233]
[1736879063475,11.497,186.57,186.53,7.95341233]
[1736879063778,8.8156,186.57,186.53,7.95341233]
[1736879064777,8.8156,186.57,186.54,2.6818]
[1736879065572,11.497,186.57,186.54,2.6818]
[1736879065777,5.917,186.57,186.54,2.6818]